Workbook

Sheet Intro (hidden)
A1: ART treatment outcome data is collected from registered ART providers directly by VARTA and by the University of Technology Sydney (UTS).
A3: This report outlines the procedures carried out for registered ART providers that are currently accredited by RTAC under the Assisted Reproductive Treatment Act 2008. Data is provided on a financial year basis ( between 1 July 2015 and 30 June 2016) as required under the Act.
A5: The following dates indicate when the latest updates were provided – pregnancy outcomes for each unit will only have been recorded up to these dates:
A6: • XX/XX/2016 Ballarat IVF
A7: • XX/XX/2016 City Fertility Centre
A8: • XX/XX/2016 City Babies
A9: • XX/XX/2016 Melbourne IVF
A10: • XX/XX/2016 Monash IVF
A12: This report includes all forms of assisted reproductive treatment (ART) cycles and artificial insemination (AI) using either partner sperm or donor sperm. Cycles involving: purely egg or embryo movement; embryo disposal; or cancelled prior to Follicle Stimulating Hormone (FSH) stimulation or prior to thawing the egg or embryo, are not included.
A14: Where a woman may have treatment at more than one treatment site, the information is presented per registered ART provider. Elsewhere, details of each treatment site for a registered ART provider are provided.
B20: Insert diagram from Understanding IVF success rates brochure and mark which tables relate to which part of the process (where applicable)
D44: Figure 7, Number of patients and treatment cycles per financial year, 2008-09 to 2014-15
A45: The data in the VARTA annual report cannot be used to compare success rates between ART procedures and between treatment sites. In evidence-based clinical practice, the most reliable and strongest evidence to compare the efficacy between ART procedures or to compare the success rates between treatment sites is generated from prospective randomised controlled trials (RCT). Only RCT can ensure that the ‘known’ and ‘unknown’ factors which impact the success rate are evenly distributed between comparison groups. | B45: Too technical. Align more with copy used in Understanding IVF success rates brochure | E45: 2008-09 | F45: 2009-10 | G45: 2010-11 | H45: 2011-12 | I45: 2012-13 | J45: 2013-14 | K45: 2014-15 | L45: 2015-16
A46: The data for VARTA annual report are collected retrospectively. ART clinics in Victoria practice very differently in terms of patient selection and use of laboratory techniques. ‘Known’ factors; such as age of the woman treated; the type of subfertility problem; the length of subfertility; previous pregnancies and live births; the history of pregnancy losses; the number of cycles undergone; and other ‘unknown’ factors are not evenly distributed between treatment sites. | D46: Number of patients | E46: 9262 | F46: 9525 | G46: 9685 | H46: 10252 | I46: 10598 | J46: 11113 | K46: 11308
A47: Therefore, VARTA annual report data only presents number of cycles; type of ART procedures; and number of pregnancies and number of births, not the success rates. Given the differences in ‘known’ and ‘unknown’ factors between treatment sites, it is not correct to calculate the success rate by number of live births over number of cycles and compare between treatment sites. Furthermore, the information on intention to treat is not available in the VARTA data. It is not correct to compare the efficacy between ART procedures since cancelled cycles and ‘known’ and ‘unknown’ factors are not taken into consideration. | D47: < 35 years | E47: 36.6 | F47: 36.0 | G47: 36.3 | H47: =H50/H46*100 -> 36.0 | I47: =I50/I46*100 -> 36.7 | J47: =J50/J46*100 -> 37.5 | K47: =K50/K46*100 -> 37.6
D48: 35-39 years | E48: 38.0 | F48: 37.6 | G48: 36.4 | H48: =H51/H46*100 -> 36.7 | I48: =I51/I46*100 -> 35.7 | J48: =J51/J46*100 -> 35.6 | K48: =K51/K46*100 -> 35.7
A49: Data outcomes table of content: | D49: ≥ 40 years | E49: 25.4 | F49: 26.4 | G49: 27.3 | H49: =H52/H46*100 -> 27.3 | I49: =I52/I46*100 -> 27.6 | J49: =J52/J46*100 -> 26.9 | K49: =K52/K46*100 -> 26.7
A50: Section 1 - Final outcomes for treatment cycles commenced in 2014-15 financial year | D50: < 35 years | E50: 3387 | F50: 3426 | G50: 3515 | H50: 3695 | I50: 3893 | J50: 4165 | K50: 4250
A51: Section 2 - Outcomes from treatment cycles, 2015–16 financial year | D51: 35-39 years | E51: 3520 | F51: 3585 | G51: 3523 | H51: 3758 | I51: 3780 | J51: 3954 | K51: 4035
A52: Section 3 - Multiple pregnancies, 2015-16 financial year | D52: ≥ 40 years | E52: 2355 | F52: 2514 | G52: 2647 | H52: 2799 | I52: 2925 | J52: 2994 | K52: 3023
A53: Section 4 - Donor treatment, 2015–16 financial year
A54: Section 5 - Surrogacy, 2015-16 financial year | D54: Number of cycles | E54: 17687 | F54: 18530 | G54: 18057 | H54: =SUM(H56:H61) -> 19361 | I54: =SUM(I56:I61) -> 19847 | J54: 20632 | K54: 20569
A55: Section 6 - Storage of gametes, 2015-16 financial year
A56: Section 7 - Preimplantation genetic diagnosis and screening, 2015-16 financial year | D56: Fresh | E56: 11068 | F56: 10854 | G56: 10655 | H56: 11489 | I56: 11455 | J56: 11889 | K56: 11772
D57: Thaw | E57: 6425 | F57: 6364 | G57: 6417 | H57: 6916 | I57: 7212 | J57: 7255 | K57: 7115
B58: Diagrams to move under Focus 4 Monitoring> Clinic data trends
D59: AI | F59: 1133 | G59: 728 | H59: 611 | I59: 842 | J59: 972 | K59: 1088
D60: DI | E60: 136 | F60: 167 | G60: 214 | H60: 275 | I60: 283 | J60: 471 | K60: 555
D61: GIFT/Surr | E61: 58 | F61: 12 | G61: 43 | H61: 70 | I61: 55 | J61: 45 | K61: 39
D64: Note:
D65: AI was not reported for 2008-09
D66: 2008-09, 2009-10, 2010-11, 2011-12, 2012-13, 2013-14, 2014-15 data were from the final outcome data
D67: 2015-16 data were from the treatment data
A74: Final 2014-15 pregnancy outcomes data was updated in September 2015. There were XX% (XX of XXXX pregnancies) of 2014-15 data with unknown outcomes. | B74: Report under Focus 4 Monitoring> Clinic data trends
A76: Legend to appear as required on each relevant section
A78: Legend (for full glossary, refer to page XX)
A79: Birth: A birth event - the delivery of a baby or babies.
A80: Live birth: birth of a living baby or babies (multiple births are classified as a single live birth)
A81: Babies born: includes liveborn and still born
A82: Liveborn babies: A baby that is born alive
A83: Age at the first treatment: Age is based on the cycle date -either the first date where FSH/stimulation drug is administrated, or the date of Last Menstrual Period (LMP) for unstimulated cycles (including natural fresh cycles and thaw cycles).
A84: Clinical pregnancy: A pregnancy verified by ultrasound at six-seven weeks gestation. A clinical pregnancy does not guarantee the birth of a baby, as miscarriages occur. Women can have more than 1 clinical pregnancy in the financial year
A85: Thawed: cryopreserved/frozen eggs, sperm or embryos must be thawed prior to transfer

Sheet Introduction
A1: VARTA collects data from all registered ART providers in Victoria to report on fertility treatment trends and fertility treatment outcomes over time. The National Perinatal Epidemiology Statistics Unit (NPESU) at the University of New South Wales assists with this data collection. However, data in tables 1.6, 4.2, 4.3, 4.4, 4.5, 6.1, 6.2, 6.3, 6.4 6.5 and 7 were submitted by clinics directly to VARTA.
A2: Section one includes the outcomes from treatment that occurred in 2020-21. This is being reported in 2022 because of the time it takes to follow up treatment, including clinical pregnancy and live birth rates arising from treatment that occurred the year before. Sections two to seven include data from treatment that occurred in 2021-22. An update on the outcomes from this treatment, including live births, will be available in 2023. For sections two to seven, registered clinics were able to provide data to NPESU up until the submission deadline of 15 July 2022. They were all given the opportunity to provide any updates to clinical pregnancy outcomes by 29 July 2022. Therefore, clinical pregnancy rates should be interpreted with caution as ultrasound scans confirming clinical pregnancies may have not been completed before data was submitted. This report includes all forms of ART cycles and artificial insemination (AI) using either partner sperm or donor sperm. It does not include: ● Egg or embryo movement from or to a clinic ● Embryo disposal procedures ● Cycles cancelled prior to follicle stimulating hormone (FSH) stimulation ● Cycles cancelled before thawing an egg or embryo. Where a woman may have treatment at more than one clinic, the information is presented per registered ART provider. Women can also have more than one cycle during a financial year. Keep this in mind when referring to data discussing the number of cycles. The diagram on the following page explains the ART process to help readers better understand the data reported.

Sheet Section 1
A1: SECTION 1
A2: Final outcomes for treatment cycles commenced in 2020-21 financial year
A4: This section includes a final outcome of treatment procedures undertaken in 2020-21. These final figures were not available at the time of the production of the 2021 Annual Report. Similarly, this year, a full report on treatment outcomes will not be possible until the 2023 Annual Report. As pregnancies are ongoing, some outcomes are not known at the time of this report going to print.
A6: Overview
A8: Table 1.1 Number of women treated, Victoria, 2020-21 financial year
A10: Treatment site | B10: No. of women treated | F10: No. of women with fresh embryos transferred | G10: No. of women with thawed embryos transferred | H10: No. of women with AI using partner sperm | I10: No. of women with AI using donor sperm
B11: < 35 | C11: 35-39 | D11: ≥ 40 | E11: All
A12: Adora Fertility, Greensborough | B12: 450 | C12: 403 | D12: 195 | E12: 1048 | F12: 584 | G12: 473 | H12: 73 | I12: 0
A13: Ballarat IVF, Wendouree | B13: 201 | C13: 132 | D13: 57 | E13: 390 | F13: 41 | G13: 251 | H13: 8 | I13: 28
A14: City Babies, Richmond | B14: 64 | C14: 41 | D14: 15 | E14: 120 | F14: 0 | G14: 0 | H14: 120 | I14: 0
A15: City Fertility Centre, Melbourne and Bundoora sites | B15: 373 | C15: 334 | D15: 176 | E15: 883 | F15: 216 | G15: 392 | H15: 40 | I15: 121
A16: Genea, Melbourne | B16: 69 | C16: 65 | D16: 48 | E16: 182 | F16: 75 | G16: 81 | H16: 6 | I16: 2
A17: Melbourne IVF, all sites including RWH | B17: 2152 | C17: 2311 | D17: 1304 | E17: 5767 | F17: 2208 | G17: 2534 | H17: 286 | I17: 201
A18: Monash IVF, all sites | B18: 1543 | C18: 1593 | D18: 1091 | E18: 4227 | F18: 1172 | G18: 1883 | H18: 233 | I18: 66
A19: Newlife IVF, Box Hill | B19: 299 | C19: 339 | D19: 202 | E19: 840 | F19: 281 | G19: 372 | H19: 27 | I19: 20
A20: Number 1 Fertility, East Melbourne and Geelong sites | B20: 719 | C20: 1014 | D20: 493 | E20: 2226 | F20: 631 | G20: 855 | H20: 207 | I20: 6
A22: Aggregated total | B22: =SUM(B12:B20) -> 5870 | C22: 6232 | D22: 3581 | E22: 15683 | F22: 5208 | G22: 6841 | H22: 1000 | I22: 444
A23: AI: artificial insemination.
A26: Table 1.2 Number of treatment cycles and pregnancy and birth outcomes, Victoria, 2020-21 financial year
A27: Treatment site
B28: No. of cycles included | C28: No. of births | G28: No. of live births | H28: No. of babies born | I28: No. of liveborn babies | J28: Pregnancy outcome unknown
A29: Adora Fertility, Greensborough | C29: No. of singletons | D29: No. of sets of twins | E29: No. of sets of higher order multiples | F29: All
A30: Ballarat IVF, Wendouree | B30: 1963 | C30: 363 | D30: 10 | E30: 0 | F30: 373 | G30: 366 | H30: 383 | I30: 376 | J30: 1
A31: City Babies, Richmond | B31: 877 | C31: 144 | D31: 1 | E31: 0 | F31: 145 | G31: 127 | H31: 146 | I31: 128 | J31: 11
A32: City Fertility Centre, Melbourne and Bundoora sites | B32: 249 | C32: 19 | D32: 2 | E32: 1 | F32: 22 | G32: 22 | H32: 26 | I32: 26 | J32: 0
A33: Genea, Melbourne | B33: 1660 | C33: 209 | D33: 11 | E33: 0 | F33: 220 | G33: 216 | H33: 231 | I33: 227 | J33: 1
A34: Melbourne IVF, all sites including RWH | B34: 392 | C34: 54 | D34: 1 | E34: 0 | F34: 55 | G34: 53 | H34: 56 | I34: 54 | J34: 0
A35: Monash IVF, all sites | B35: 11047 | C35: 1915 | D35: 39 | E35: 2 | F35: 1956 | G35: 1946 | H35: 1999 | I35: 1987 | J35: 0
A36: Newlife IVF, Box Hill | B36: 7326 | C36: 1211 | D36: 39 | E36: 2 | F36: 1252 | G36: 1238 | H36: 1295 | I36: 1280 | J36: 0
A37: Number 1 Fertility, East Melbourne and Geelong sites | B37: 1708 | C37: 289 | D37: 12 | E37: 0 | F37: 301 | G37: 299 | H37: 313 | I37: 310 | J37: 0
B38: 4540 | C38: 606 | D38: 10 | E38: 0 | F38: 616 | G38: 608 | H38: 626 | I38: 618 | J38: 2
A39: Aggregated total
B40: =SUM(B30:B38) -> 29762 | C40: 4810 | D40: 125 | E40: 5 | F40: 4940 | G40: 4875 | H40: 5075 | I40: 5006 | J40: 15
A42: Legend Age at first treatment: The age of a person when they begin treatment – either the first date when a stimulation drug is administrated or the date of the last menstrual period (LMP) for unstimulated cycles (including natural fresh cycles and thaw cycles). Babies born: Includes liveborn and stillborn. Birth: A birth event – the delivery of a baby or babies. Live birth: Birth of a living baby or babies (multiple births are classified as a single live birth). Liveborn baby: A baby that is born alive. Clinical pregnancy: A pregnancy verified by ultrasound at six/seven weeks’ gestation. A clinical pregnancy does not guarantee the birth of a baby as miscarriages can occur. Women can have more than one clinical pregnancy in a financial year. Thawed: Cryopreserved (frozen) eggs, sperm or embryos must be thawed prior to use.
A44: Table 1.3a Fresh embryo transfer cycles and pregnancy outcomes, Victoria, 2020-21 financial year
A45: This data includes fresh embryos formed from thawed eggs
B47: Women using embryos derived from their own, their partner's or donated eggs
A48: Treatment site | B48: No. of cycles with fresh embryo transferred | C48: % of single embryo transfer | D48: No. of clinical pregnancies | E48: No. of live births | F48: % of live births per fresh embryo transfer
A49: Adora Fertility, Greensborough | B49: All ages by Treatment site
A50: Ballarat IVF, Wendouree | B50: 767 | C50: 86.8 | D50: 214 | E50: 157 | F50: =SUM(E50/B50)*100 -> 20.47
A51: City Fertility Centre, Melbourne and Bundoora sites | B51: 42 | C51: 97.6 | D51: 13 | E51: 7 | F51: =SUM(E51/B51)*100 -> 16.67
A52: Genea, Melbourne | B52: 243 | C52: 92.6 | D52: 60 | E52: 47 | F52: 19.34
A53: Melbourne IVF, all sites including RWH | B53: 104 | C53: 92.3 | D53: 29 | E53: 20 | F53: 19.23
A54: Monash IVF, all sites | B54: 2628 | C54: 96.1 | D54: 922 | E54: 716 | F54: 27.25
A55: Newlife IVF, Box Hill | B55: 1336 | C55: 88.9 | D55: 436 | E55: 337 | F55: 25.22
A56: Number 1 Fertility, East Melbourne | B56: 350 | C56: 92.6 | D56: 123 | E56: 90 | F56: 25.71
A57: Aggregated total | B57: 763 | C57: 100.0 | D57: 245 | E57: 174 | F57: 22.80
B58: =SUM(B50:B57) -> 6233 | C58: 93.6 | D58: =SUM(D50:D57) -> 2042 | E58: =SUM(E50:E57) -> 1548 | F58: 24.84
A59: Age group
A60: <35 | B60: All treatment sites by age group
A61: 35-39 | B61: 2108 | C61: 97.6 | D61: 893 | E61: 741 | F61: =SUM(E61/B61)*100 -> 35.15
A62: >=40 | B62: 2404 | C62: 95.3 | D62: 824 | E62: 619 | F62: =SUM(E62/B62)*100 -> 25.75
A63: Aggregated total | B63: 1721 | C63: 86.1 | D63: 325 | E63: 188 | F63: 10.92
B64: =SUM(B61:B63) -> 6233 | C64: 93.6 | D64: =SUM(D61:D63) -> 2042 | E64: =SUM(E61:E63) -> 1548 | F64: 24.84
A66: Table 1.3b Thawed embryo transfer cycles and pregnancy outcomes, Victoria, 2020-21 financial year
B68: Women using own eggs
A69: Treatment site | B69: No. of cycles with thawed embryos transferred | C69: % of single embryo transfer | D69: No. of clinical pregnancies | E69: No. of live births | F69: % of live births per thawed embryo transfer
A70: Adora Fertility, Greensborough | B70: All ages by Treatment site
A71: Ballarat IVF, Wendouree | B71: 696 | C71: 97.3 | D71: 260 | E71: 201 | F71: =SUM(E71/B71)*100 -> 28.88
A72: City Fertility Centre, Melbourne and Bundoora sites | B72: 371 | C72: 99.5 | D72: 159 | E72: 107 | F72: =SUM(E72/B72)*100 -> 28.84
A73: Genea, Melbourne | B73: 511 | C73: 95.1 | D73: 172 | E73: 141 | F73: 27.59
A74: Melbourne IVF, all sites including RWH | B74: 118 | C74: 97.5 | D74: 40 | E74: 30 | F74: 25.42
A75: Monash IVF, all sites | B75: 3632 | C75: 95.5 | D75: 1386 | E75: 1108 | F75: 30.51
A76: Newlife IVF, Box Hill | B76: 2346 | C76: 95.3 | D76: 994 | E76: 800 | F76: 34.10
A77: Number 1 Fertility, East Melbourne | B77: 502 | C77: 96.8 | D77: 232 | E77: 192 | F77: 38.25
A78: Aggregated total | B78: 1169 | C78: 100.0 | D78: 489 | E78: 406 | F78: 34.73
B79: =SUM(B71:B78) -> 9345 | C79: 96.4 | D79: =SUM(D71:D78) -> 3732 | E79: =SUM(E71:E78) -> 2985 | F79: 31.94
A80: Age group
A81: <35 | B81: All treatment sites by age group
A82: 35-39 | B82: 3739 | C82: 96.8 | D82: 1682 | E82: 1417 | F82: 37.90
A83: >=40 | B83: 3871 | C83: 97.0 | D83: 1546 | E83: 1215 | F83: 31.39
A84: Aggregated total | B84: 1735 | C84: 94.3 | D84: 504 | E84: 353 | F84: 20.35
B85: =SUM(B82:B84) -> 9345 | C85: 96.4 | D85: =SUM(D82:D84) -> 3732 | E85: 2985 | F85: 31.94
A87: Table 1.3c Artificial insemination (AI) cycles usng partner sperm and pregnancy outcomes, Victoria, 2020-21 financial year
A89: Treatment site | B89: No. of cycles with AI performed | C89: No. of clinical pregnancies | D89: No. of live births | E89: % of live births per AI cycle using partner sperm
A90: Adora Fertility, Greensborough | B90: All ages by Treatment site
A91: Ballarat IVF, Wendouree | B91: 109 | C91: 11 | D91: 8 | E91: =SUM(D91/B91)*100 -> 7.34
A92: City Babies, Richmond | B92: 12 | C92: 0 | D92: 0 | E92: =SUM(D92/B92)*100 -> 0.00
A93: City Fertility Centre, Melbourne and Bundoora sites | B93: 249 | C93: 29 | D93: 22 | E93: 8.84
A94: Genea, Melbourne | B94: 49 | C94: 9 | D94: 7 | E94: 14.29
A95: Melbourne IVF, all sites including RWH | B95: 15 | C95: 1 | D95: 1 | E95: 6.67
A96: Monash IVF, all sites | B96: 440 | C96: 55 | D96: 46 | E96: 10.45
A97: Newlife IVF, Box Hill | B97: 362 | C97: 39 | D97: 26 | E97: 7.18
A98: Number 1 Fertility, East Melbourne | B98: 45 | C98: 6 | D98: 4 | E98: 8.89
A99: Aggregated total | B99: 310 | C99: 21 | D99: 14 | E99: 4.52
B100: =SUM(B91:B99) -> 1591 | C100: =SUM(C91:C99) -> 171 | D100: =SUM(D91:D99) -> 128 | E100: 8.05
A101: Age group
A102: <35 | B102: All treatment sites by age group
A103: 35-39 | B103: 771 | C103: 86 | D103: 66 | E103: 8.56
A104: >=40 | B104: 606 | C104: 76 | D104: 56 | E104: 9.24
A105: Aggregated total | B105: 214 | C105: 9 | D105: 6 | E105: 2.80
B106: =SUM(B103:B105) -> 1591 | C106: =SUM(C103:C105) -> 171 | D106: =SUM(D103:D105) -> 128 | E106: 8.05
A108: Table 1.3d Artificial insemination (AI) cycles using donor sperm and pregnancy outcomes, Victoria, 2020-21 financial year
A110: Treatment site | B110: No. of cycles with AI performed | C110: No. of clinical pregnancies | D110: No. of live births | E110: % of live births per AI cycle using donor sperm
A111: Ballarat IVF, Wendouree | B111: All ages by Treatment site
A112: City Fertility Centre, Melbourne and Bundoora sites | B112: 46 | C112: 5 | D112: 4 | E112: =SUM(D112/B112)*100 -> 8.70
A113: Genea, Melbourne | B113: 181 | C113: 18 | D113: 17 | E113: =SUM(D113/B113)*100 -> 9.39
A114: Melbourne IVF, all sites including RWH | B114: 4 | C114: 0 | D114: 0 | E114: 0.00
A115: Monash IVF, all sites | B115: 330 | C115: 50 | D115: 35 | E115: 10.61
A116: Newlife IVF, Box Hill | B116: 94 | C116: 20 | D116: 19 | E116: 20.21
A117: Number 1 Fertility, East Melbourne | B117: 30 | C117: 6 | D117: 6 | E117: 20.00
A118: Aggregated total | B118: 8 | C118: 0 | D118: 0 | E118: 0.00
B119: =SUM(B112:B118) -> 693 | C119: =SUM(C112:C118) -> 99 | D119: =SUM(D112:D118) -> 81 | E119: 11.69
A120: Age group
A121: <35 | B121: All treatment sites by age group
A122: 35-39 | B122: 336 | C122: 52 | D122: 46 | E122: 13.69
A123: >=40 | B123: 321 | C123: 43 | D123: 33 | E123: 10.28
A124: Aggregated total | B124: 36 | C124: 4 | D124: 2 | E124: 5.56
B125: =SUM(B122:B124) -> 693 | C125: =SUM(C122:C124) -> 99 | D125: =SUM(D122:D124) -> 81 | E125: 11.69
A127: Table 1.4 Treatment using thawed eggs and pregnancy outcomes, Victoria, 2020-21 financial year
B128: Women using own eggs | G128: Women using donor/partner eggs*
A129: Treatment site | B129: No. of cycle with eggs thawed | C129: No. of cycles with embryos transferred | D129: No. of clinical pregnancies | E129: No. of live births | F129: % of live births per embryo transfer from a woman's own thawed eggs | G129: No. of cycle with eggs thawed | H129: No. of cycles with embryos transferred | I129: No. of clinical pregnancies | J129: No. of live births | K129: % of live births per embryo transfer from a donor or partner thawed eggs
A130: Adora Fertility, Greensborough | B130: 3 | C130: 3 | D130: 0 | E130: 0 | F130: =SUM(E130/C130)*100 -> 0.00 | G130: 0 | H130: 0 | I130: 0 | J130: 0 | K130: 0.00
A131: Ballarat IVF, Wendouree | B131: 5 | C131: 0 | D131: 0 | E131: 0 | F131: 0.00 | G131: 0 | H131: 0 | I131: 0 | J131: 0 | K131: 0.00
A132: City Fertility Centre, Melbourne and Bundoora sites | B132: 9 | C132: 5 | D132: 2 | E132: 2 | F132: =SUM(E132/C132)*100 -> 40.00 | G132: 2 | H132: 2 | I132: 2 | J132: 1 | K132: =SUM(J132/H132)*100 -> 50.00
A133: Genea, Melbourne | B133: 5 | C133: 5 | D133: 0 | E133: 0 | F133: 0.00 | G133: 0 | H133: 0 | I133: 0 | J133: 0 | K133: 0.00
A134: Melbourne IVF, all sites including RWH | B134: 114 | C134: 74 | D134: 34 | E134: 25 | F134: 33.78 | G134: 14 | H134: 13 | I134: 5 | J134: 3 | K134: 23.08
A135: Monash IVF, all sites | B135: 105 | C135: 45 | D135: 18 | E135: 14 | F135: 31.11 | G135: 58 | H135: 47 | I135: 19 | J135: 18 | K135: 38.30
A136: Newlife IVF, Box Hill | B136: 20 | C136: 9 | D136: 6 | E136: 4 | F136: 44.44 | G136: 0 | H136: 0 | I136: 0 | J136: 0 | K136: 0.00
A137: Number 1 Fertility, East Melbourne | B137: 47 | C137: 32 | D137: 9 | E137: 5 | F137: 15.63 | G137: 8 | H137: 7 | I137: 2 | J137: 1 | K137: 14.29
A138: Aggregated total | B138: =SUM(B130:B137) -> 308 | C138: =SUM(C130:C137) -> 173 | D138: =SUM(D130:D137) -> 69 | E138: =SUM(E130:E137) -> 50 | F138: 28.90 | G138: =SUM(G130:G137) -> 82 | H138: =SUM(H130:H137) -> 69 | I138: =SUM(I130:I137) -> 28 | J138: =SUM(J130:J137) -> 23 | K138: 33.33
A139: * Donor eggs include those imported from interstate or overseas.
A142: Table 1.5 Surrogacy cycles and pregnancy outcomes, Victoria, 2020-21 financial year
A143: This table includes cycles where embryo(s) was transferred to a surrogate woman.
A144: Treatment site
A145: City Fertility Centre, Melbourne | B145: No. of surrogate women | C145: No. of cycles with embryos transferred* | D145: No. of clinical pregnancies | E145: No. of live births | F145: % of live births per embryo transfer in a surrogacy cycle
A146: Melbourne IVF, East Melbourne | B146: 2 | C146: 2 | D146: 2 | E146: 2 | F146: =SUM(E146/C146)*100 -> 100.00
A147: Monash IVF, all sites | B147: 9 | C147: 13 | D147: 7 | E147: 6 | F147: =SUM(E147/C147)*100 -> 46.15
A148: Newlife IVF, Box Hill | B148: 22 | C148: 32 | D148: 17 | E148: 15 | F148: 46.88
A149: Number 1 Fertility, East Melbourne | B149: 3 | C149: 4 | D149: 1 | E149: 0 | F149: 0.00
A150: Aggregated total | B150: 8 | C150: 11 | D150: 4 | E150: 4 | F150: 36.36
B151: =SUM(B146:B150) -> 44 | C151: =SUM(C146:C150) -> 62 | D151: =SUM(D146:D150) -> 31 | E151: =SUM(E146:E150) -> 27 | F151: 43.55
A157: Table 1.6 Outcome for Preimplantation testing (PGT), 2020-21 financial year
A158: PGT-M, PGT-SR and sex selection are used for patients with a known genetic risk. PGT-A is used for the detection of numerical chromosome abnormalities. PGT IVF/ICSI cycles may be initiated with the aim of freezing all embryos (no embryos transferred).
A159: Registered ART provider (all sites) | B159: No. of women who had embryos tested | C159: No. of embryos tested* | D159: No. of embryos deemed suitable for transfer | E159: No. of women who had an embryo transfer** | F159: No. of embryos transferred following PGT | G159: No. of clinical pregnancies | H159: No. of live births | I159: % of live births per embryo transfer following PGT
A160: Preimplantation genetic testing for single gene disorders (PGT-M), Preimplantation testing for structural rearrangements (PGT-SR) and Sex selection
A161: City Fertility Centre | B161: 17 | C161: 47 | D161: 15 | E161: 14 | F161: 14 | G161: 10 | H161: 5 | I161: 36
A162: Genea | B162: 2 | C162: 14 | D162: 2 | E162: 2 | F162: 2 | G162: 0 | H162: 0 | I162: 0
A163: Melbourne IVF, all sites including Reproductive services | B163: 131 | C163: 849 | D163: 336 | E163: 133 | F163: 188 | G163: 99 | H163: 78 | I163: 41
A164: Monash IVF | B164: 54 | C164: 232 | D164: 91 | E164: 51 | F164: 69 | G164: 36 | H164: 33 | I164: 48
A165: Newlife IVF | B165: 21 | C165: 139 | D165: 30 | E165: 11 | F165: 15 | G165: 8 | H165: 7 | I165: 47
A166: Number 1 Fertility | B166: 43 | C166: 266 | D166: 117 | E166: 28 | F166: 35 | G166: 23 | H166: 18 | I166: 51
A167: Aggregated total | B167: 268 | C167: 1,547 | D167: 591 | E167: 239 | F167: 323 | G167: 176 | H167: 141 | I167: 44
A168: PGT-M: preimplantation genetic testing for single gene disorders, PGT-SR: preimplantation genetic testing for structural rearrangements
A169: Registered ART provider (all sites) | B169: No. of women who had embryos tested | C169: No. of embryos tested* | D169: No. of embryos deemed euploid after PGT-A | E169: No. of embryos deemed mosaic after PGT-A | F169: No of embryos deemed inconclusive or no result after PGT-A | G169: No. of women who had an embryo transer** | H169: No. of PGT-A tested embryos transferred | I169: No. of clinical pregnancies | J169: No. of live births | K169: % of live births per embryo transfer following PGT-A
A170: Preimplantation genetic testing for aneuploidy (incorrect chromosomal numbers, PGT-A)
A171: Ballarat IVF **** | B171: NA | C171: NA | D171: NA | E171: NA | F171: NA | G171: 1 | H171: 3 | I171: 1 | J171: 0 | K171: 0
A172: City Fertility Centre | B172: 55 | C172: 184 | D172: 78 | E172: 45 | F172: 8 | G172: 34 | H172: 45 | I172: 20 | J172: 14 | K172: 31
A173: Genea | B173: 39 | C173: 144 | D173: 72 | E173: 11 | F173: 0 | G173: 40 | H173: 62 | I173: 21 | J173: 18 | K173: 29
A174: Melbourne IVF, all sites including Reproductive services | B174: 608 | C174: 2,401 | D174: 976 | E174: 140 | F174: 110 | G174: 434 | H174: 608 | I174: 257 | J174: 206 | K174: 34
A175: Monash IVF | B175: 571 | C175: 1,719 | D175: 925 | E175: 124 | F175: 133 | G175: 400 | H175: 504 | I175: 240 | J175: 219 | K175: 43
A176: Newlife IVF | B176: 218 | C176: 873 | D176: 366 | E176: 164 | F176: 35 | G176: 124 | H176: 166 | I176: 83 | J176: 75 | K176: 45
A177: Number 1 Fertility | B177: 577 | C177: 2,016 | D177: 882 | E177: 353 | F177: 43 | G177: 415 | H177: 513 | I177: 252 | J177: 220 | K177: 43
A178: Aggregated total | B178: 2,068 | C178: 7,337 | D178: 3,299 | E178: 837 | F178: 329 | G178: 1,448 | H178: 1,901 | I178: 874 | J178: 752 | K178: 40
A179: PGT-A: preimplantation genetic screening for aneuploidy
A180: Registered ART provider (all sites) | B180: No. of women who had embryos tested | C180: No. of embryos tested* | D180: No. of embryos deemed suitable for transfer | E180: No. of women who had an embryo tranfser** | F180: No. of embryos transferred following PGT | G180: No. of clinical pregnancies | H180: No. of live births | I180: % of live births per embryo transfer following PGT
A181: Non-invasive preimplantation genetic testing for aneuploidy (NIPGT)***
A182: Monash IVF | B182: 105 | C182: 227 | D182: 53 | E182: 103 | F182: 124 | G182: 56 | H182: 44 | I182: 35
A183: Aggregated total | B183: 105 | C183: 227 | D183: 53 | E183: 103 | F183: 124 | G183: 56 | H183: 44 | I183: 35
A184: NIPGT: non-invasive preimplantation genetic testing for aneuploidy
A185: * Either fresh embryos or thawed frozen embryos may be tested. Some patients will have some fresh and thawed frozen embryos tested.
A186: ** Women may have treatment using embryos tested and stored in a prior year
A187: *** Non-invasive PGT-A. Note that some women will have some embryos biopsied using standard PGT-A and some tested by NIPGT.
A188: ****Some clinics that do not undertake PGT, may receive embryos transported from another clinic with PGT information

Sheet Section 2
A1: SECTION 2
A2: ART procedures, 2021-22 financial year
A3: This section provides details of ART treatment and clinical pregnancies for the 2020-21 financial year. As pregnancies are ongoing, some outcomes are not known at the time of this report going to print.
A5: Overview
A7: Table 2.1 Number of women treated, Victoria, 2021-22 financial year
A8: Treatment site | B8: No. of women treated | F8: No. of cycles included | G8: No. of women with FSH stimulation | H8: No. of women with egg retrievals | I8: No. of women with fresh/thawed eggs and attempted IVF/ICSI fertilisation | J8: No. of women with embryos thawed | K8: No. of women with fresh/thawed embryos transferred | L8: No. of women with AI using partner sperm | M8: No. of women with AI using donor sperm
B9: < 35 | C9: 35-39 | D9: ≥ 40 | E9: All
A10: Adora Fertility, Greensborough | B10: 391 | C10: 397 | D10: 207 | E10: 995 | F10: 1790 | G10: 793 | H10: 721 | I10: 687 | J10: 388 | K10: 766 | L10: 60 | M10: 0
A11: Ballarat IVF, Wendouree | B11: 231 | C11: 150 | D11: 75 | E11: 456 | F11: 965 | G11: 313 | H11: 309 | I11: 264 | J11: 278 | K11: 307 | L11: 30 | M11: 15
A12: City Babies, Richmond | B12: 64 | C12: 33 | D12: 22 | E12: 119 | F12: 231 | G12: 113 | H12: 0 | I12: 0 | J12: 0 | K12: 0 | L12: 119 | M12: 0
A13: City Fertility Centre, all sites | B13: 558 | C13: 509 | D13: 280 | E13: 1347 | F13: 2517 | G13: 946 | H13: 891 | I13: 783 | J13: 577 | K13: 783 | L13: 63 | M13: 149
A14: Genea, Melbourne | B14: 93 | C14: 78 | D14: 57 | E14: 228 | F14: 433 | G14: 176 | H14: 173 | I14: 128 | J14: 93 | K14: 136 | L14: 12 | M14: 6
A15: Melbourne IVF, all sites including RWH | B15: 2140 | C15: 2362 | D15: 1328 | E15: 5830 | F15: 10501 | G15: 4340 | H15: 4160 | I15: 3374 | J15: 2522 | K15: 3789 | L15: 236 | M15: 135
A16: Monash IVF, all sites | B16: 1602 | C16: 1588 | D16: 1171 | E16: 4361 | F16: 7090 | G16: 3111 | H16: 2723 | I16: 2187 | J16: 1884 | K16: 2605 | L16: 235 | M16: 85
A17: Newlife IVF, Box Hill | B17: 411 | C17: 438 | D17: 227 | E17: 1076 | F17: 2204 | G17: 897 | H17: 851 | I17: 682 | J17: 464 | K17: 671 | L17: 37 | M17: 37
A18: Number 1 Fertility, East Melbourne | B18: 828 | C18: 1085 | D18: 646 | E18: 2559 | F18: 5164 | G18: 2106 | H18: 1889 | I18: 1334 | J18: 946 | K18: 1325 | L18: 252 | M18: 3
A19: Aggregated total | B19: 6318 | C19: 6640 | D19: 4013 | E19: 16971 | F19: 30895 | G19: 12795 | H19: 11717 | I19: 9439 | J19: 7152 | K19: 10382 | L19: 1044 | M19: 430
A20: FSH: Follicle stimulating hormone. IVF: in vitro fertilisation. ICSI: intracytoplasmic sperm injection. AI: artificial insemination.
A21: A small number of cycles (<1%) were not received by the submission deadline.
A24: Egg retrieval cycles
A26: Table 2.2 Number of egg retrieval cycles, Victoria, 2021-22 financial year
A27: Treatment site | B27: No. of egg retrieval cycles | C27: No. of egg retrievals with eggs collected | D27: No. of eggs collected | E27: Average No. eggs collected per egg retrieval cycle | F27: No. of cycles with eggs frozen | G27: No. of eggs frozen | H27: Average No. of eggs frozen per cycle with eggs frozen
A28: < 35
A29: Adora Fertility, Greensborough | B29: 367 | C29: 364 | D29: 3883 | E29: =SUM(D29/B29) -> 11 | F29: 10 | G29: 80 | H29: =SUM(G29/F29) -> 8
A30: Ballarat IVF, Wendouree | B30: 193 | C30: 193 | D30: 2500 | E30: =SUM(D30/B30) -> 13 | F30: 36 | G30: 361 | H30: =SUM(G30/F30) -> 10
A31: City Fertility Centre, all sites | B31: 403 | C31: 401 | D31: 5313 | E31: 13 | F31: 40 | G31: 360 | H31: 9
A32: Genea, Melbourne | B32: 85 | C32: 84 | D32: 922 | E32: 11 | F32: 22 | G32: 183 | H32: 8
A33: Melbourne IVF, all sites including RWH | B33: 1899 | C33: 1888 | D33: 25951 | E33: 14 | F33: 452 | G33: 5436 | H33: 12
A34: Monash IVF, all sites | B34: 1162 | C34: 1159 | D34: 14887 | E34: 13 | F34: 294 | G34: 2791 | H34: 9
A35: Newlife IVF, Box Hill | B35: 401 | C35: 400 | D35: 5600 | E35: 14 | F35: 90 | G35: 898 | H35: 10
A36: Number 1 Fertility, East Melbourne | B36: 882 | C36: 873 | D36: 12442 | E36: 14 | F36: 330 | G36: 3395 | H36: 10
A37: Aggregated total | B37: 5392 | C37: 5362 | D37: 71498 | E37: 13 | F37: 1274 | G37: 13504 | H37: 11
A38: 35-39
A39: Adora Fertility, Greensborough | B39: 382 | C39: 370 | D39: 3101 | E39: =SUM(D39/B39) -> 8 | F39: 10 | G39: 85 | H39: =SUM(G39/F39) -> 9
A40: Ballarat IVF, Wendouree | B40: 164 | C40: 158 | D40: 1542 | E40: =SUM(D40/B40) -> 9 | F40: 28 | G40: 303 | H40: =SUM(G40/F40) -> 11
A41: City Fertility Centre, all sites | B41: 451 | C41: 445 | D41: 4559 | E41: 10 | F41: 31 | G41: 325 | H41: 10
A42: Genea, Melbourne | B42: 78 | C42: 77 | D42: 771 | E42: 10 | F42: 18 | G42: 150 | H42: 8
A43: Melbourne IVF, all sites including RWH | B43: 2236 | C43: 2199 | D43: 23123 | E43: 10 | F43: 460 | G43: 4126 | H43: 9
A44: Monash IVF, all sites | B44: 1214 | C44: 1205 | D44: 12778 | E44: 11 | F44: 275 | G44: 2427 | H44: 9
A45: Newlife IVF, Box Hill | B45: 544 | C45: 541 | D45: 6287 | E45: 12 | F45: 102 | G45: 1039 | H45: 10
A46: Number 1 Fertility, East Melbourne | B46: 1324 | C46: 1312 | D46: 15094 | E46: 11 | F46: 511 | G46: 4409 | H46: 9
A47: Aggregated total | B47: 6393 | C47: 6307 | D47: 67255 | E47: 11 | F47: 1435 | G47: 12864 | H47: 9
A48: ≥ 40
A49: Adora Fertility, Greensborough | B49: 252 | C49: 243 | D49: 1606 | E49: =SUM(D49/B49) -> 6 | F49: 3 | G49: 11 | H49: =SUM(G49/F49) -> 4
A50: Ballarat IVF, Wendouree | B50: 87 | C50: 82 | D50: 570 | E50: =SUM(D50/B50) -> 7 | F50: 2 | G50: 7 | H50: =SUM(G50/F50) -> 4
A51: City Fertility Centre, all sites | B51: 278 | C51: 260 | D51: 1834 | E51: 7 | F51: 7 | G51: 35 | H51: 5
A52: Genea, Melbourne | B52: 81 | C52: 79 | D52: 472 | E52: 6 | F52: 12 | G52: 60 | H52: 5
A53: Melbourne IVF, all sites including RWH | B53: 1433 | C53: 1360 | D53: 10093 | E53: 7 | F53: 75 | G53: 531 | H53: 7
A54: Monash IVF, all sites | B54: 1015 | C54: 979 | D54: 7260 | E54: 7 | F54: 102 | G54: 583 | H54: 6
A55: Newlife IVF, Box Hill | B55: 313 | C55: 311 | D55: 2856 | E55: 9 | F55: 23 | G55: 170 | H55: 7
A56: Number 1 Fertility, East Melbourne | B56: 726 | C56: 710 | D56: 6304 | E56: 9 | F56: 107 | G56: 695 | H56: 6
A57: Aggregated total | B57: 4193 | C57: 4024 | D57: 30995 | E57: 7 | F57: 331 | G57: 2092 | H57: 6
A58: All
A59: Adora Fertility, Greensborough | B59: 1001 | C59: 977 | D59: 8590 | E59: =SUM(D59/B59) -> 9 | F59: 23 | G59: 176 | H59: =SUM(G59/F59) -> 8
A60: Ballarat IVF, Wendouree | B60: 444 | C60: 433 | D60: 4612 | E60: =SUM(D60/B60) -> 10 | F60: 66 | G60: 671 | H60: =SUM(G60/F60) -> 10
A61: City Fertility Centre, all sites | B61: 1132 | C61: 1106 | D61: 11706 | E61: 10 | F61: 78 | G61: 720 | H61: 9
A62: Genea, Melbourne | B62: 244 | C62: 240 | D62: 2165 | E62: 9 | F62: 52 | G62: 393 | H62: 8
A63: Melbourne IVF, all sites including RWH | B63: 5568 | C63: 5447 | D63: 59167 | E63: 11 | F63: 987 | G63: 10093 | H63: 10
A64: Monash IVF, all sites | B64: 3399 | C64: 3343 | D64: 34925 | E64: 10 | F64: 671 | G64: 5801 | H64: 9
A65: Newlife IVF, Box Hill | B65: 1258 | C65: 1252 | D65: 14743 | E65: 12 | F65: 215 | G65: 2107 | H65: 10
A66: Number 1 Fertility, East Melbourne | B66: 2932 | C66: 2895 | D66: 33840 | E66: 12 | F66: 948 | G66: 8499 | H66: 9
A67: Aggregated total | B67: 15978 | C67: 15693 | D67: 169748 | E67: 11 | F67: 3040 | G67: 28460 | H67: 9
A70: Use of eggs
A72: Table 2.3 Number of ART cycles using fresh eggs, Victoria, 2021-22 financial year
A74: Table 2.3a Attempted fertilisation, Victoria, 2021-22 financial year
B75: No. of cycles with attempted fertilisation | C75: % of cycles involving eggs treated with ICSI** | D75: No. of cycles with embryos formed* | E75: No. of embryos formed | F75: Average no. of embryos formed per cycle
A76: Treatment site | B76: All ages by Treatment site
A77: Adora Fertility, Greensborough | B77: 936 | C77: 54.6 | D77: 898 | E77: 4839 | F77: =SUM(E77/B77) -> 5
A78: Ballarat IVF, Wendouree | B78: 363 | C78: 52.6 | D78: 347 | E78: 2324 | F78: =SUM(E78/B78) -> 6
A79: City Fertility Centre, all sites | B79: 985 | C79: 72.4 | D79: 928 | E79: 5613 | F79: 6
A80: Genea, Melbourne | B80: 182 | C80: 52.2 | D80: 176 | E80: 931 | F80: 5
A81: Melbourne IVF, all sites including RWH | B81: 4361 | C81: 70.4 | D81: 4058 | E81: 24261 | F81: 6
A82: Monash IVF, all sites | B82: 2575 | C82: 79.5 | D82: 346 | E82: 14300 | F82: 6
A83: Newlife IVF, Box Hill | B83: 990 | C83: 86.1 | D83: 925 | E83: 5622 | F83: 6
A84: Number 1 Fertility, East Melbourne | B84: 1865 | C84: 89.0 | D84: 1626 | E84: 8513 | F84: 5
A85: Aggregated total | B85: 12257 | C85: 74.6 | D85: 11378 | E85: 66403 | F85: 5
A86: Age group | B86: All Treatment sites by age group
A87: <35 | B87: 3968 | C87: 73.6 | D87: 3804 | E87: 27747 | F87: =SUM(E87/B87) -> 7
A88: 35-39 | B88: 4683 | C88: 75.7 | D88: 4357 | E88: 24887 | F88: =SUM(E88/B88) -> 5
A89: >=40 | B89: 3606 | C89: 74.1 | D89: 3217 | E89: 13769 | F89: 4
A90: Aggregated total | B90: =SUM(B87:B89) -> 12257 | C90: 74.6 | D90: =SUM(D87:D89) -> 11378 | E90: 66403 | F90: 5
A91: ICSI: intracytoplasmic sperm injection.
A92: * Fertilised eggs with two pronuclei
A95: Table 2.3b Number of ART cycles using fresh embryos after IVF/ICSI, Victoria, 2021-22 financial year
B96: No. of cycles with embryos formed** | C96: No. of cycles with fresh embryos transferred | D96: No. of cycles with embryos frozen* | E96: No. of cycles with ALL embryos frozen* | F96: % of cycles with ALL embryos frozen
A97: Treatment site | B97: All ages by Treatment site
A98: Adora Fertility, Greensborough | B98: 898 | C98: 623 | D98: 369 | E98: 137 | F98: =SUM(E98/B98)*100 -> 15.3
A99: Ballarat IVF, Wendouree | B99: 347 | C99: 59 | D99: 278 | E99: 232 | F99: 66.9
A100: City Fertility Centre, all sites | B100: 928 | C100: 384 | D100: 588 | E100: 382 | F100: 41.2
A101: Genea, Melbourne | B101: 176 | C101: 107 | D101: 94 | E101: 48 | F101: 27.3
A102: Melbourne IVF, all sites including RWH | B102: 4058 | C102: 2346 | D102: 2625 | E102: 1292 | F102: 31.8
A103: Monash IVF, all sites | B103: 2420 | C103: 1097 | D103: 1653 | E103: 1053 | F103: 43.5
A104: Newlife IVF, Box Hill | B104: 925 | C104: 362 | D104: 673 | E104: 463 | F104: 50.1
A105: Number 1 Fertility, East Melbourne | B105: 1626 | C105: 704 | D105: 1231 | E105: 817 | F105: 50.2
A106: Aggregated total | B106: 11378 | C106: 5682 | D106: 7511 | E106: 4424 | F106: 38.9
A107: Age group | B107: All Treatment sites by age group
A108: <35 | B108: 3804 | C108: 1903 | D108: 2855 | E108: 1574 | F108: =SUM(E108/B108)*100 -> 41.4
A109: 35-39 | B109: 4357 | C109: 2101 | D109: 2936 | E109: 1774 | F109: =SUM(E109/B109)*100 -> 40.7
A110: >=40 | B110: 3217 | C110: 1678 | D110: 1720 | E110: 1076 | F110: 33.4
A111: Aggregated total | B111: =SUM(B108:B110) -> 11378 | C111: 5682 | D111: 7511 | E111: 4424 | F111: 38.9
A112: * Embryos frozen may need to be suitable - i.e. of good quality and meeting freezing criteria.
A113: * * Fertilised eggs with two pronuclei
A117: Table 2.4 Number of ART cycles using thawed eggs, Victoria, 2021-22 financial year
A118: Table 2.4 reports cycles using thawed eggs during the 2021-22 financial year. Tables 2.4a and 2.4b show data for attempted fertilisation with thawed eggs and the use of embryos created from thawed eggs respectively.
A119: Table 2.4a Attempted fertilisation, Victoria, 2021-22 financial year***
A120: Women using own eggs
B121: No. of cycles with attempted fertilisation | C121: No. of cycles with embryos formed** | D121: % of cycles with embryos formed from attempted fertilisation | E121: No. of embryos formed | F121: Average no. of embryos formed per cycle
A122: Treatment site | B122: All ages by Treatment site
A123: City Fertility Centre, Melbourne | B123: 6 | C123: 6 | D123: =SUM(C123/B123)*100 -> 100.0 | E123: 33 | F123: =SUM(E123/B123) -> 6
A124: Genea, Melbourne | B124: 2 | C124: 2 | D124: =SUM(C124/B124)*100 -> 100.0 | E124: 24 | F124: =SUM(E124/B124) -> 12
A125: Melbourne IVF, all sites including RWH | B125: 114 | C125: 112 | D125: 98.2 | E125: 743 | F125: =SUM(E125/B125) -> 7
A126: Monash IVF, all sites | B126: 46 | C126: 45 | D126: =SUM(C126/B126)*100 -> 97.8 | E126: 249 | F126: 5
A127: Newlife IVF, Box Hill | B127: 11 | C127: 10 | D127: =SUM(C127/B127)*100 -> 90.9 | E127: 42 | F127: =SUM(E127/B127) -> 4
A128: Number 1 Fertility, East Melbourne | B128: 21 | C128: 21 | D128: =SUM(C128/B128)*100 -> 100.0 | E128: 144 | F128: 7
A129: Aggregated total | B129: 200 | C129: 196 | D129: =SUM(C129/B129)*100 -> 98.0 | E129: 1235 | F129: 6
A130: Age group | B130: All Treatment sites by age group
A131: <35 | B131: 30 | C131: 30 | D131: =SUM(C131/B131)*100 -> 100.0 | E131: 218 | F131: =SUM(E131/B131) -> 7
A132: 35-39 | B132: 57 | C132: 56 | D132: =SUM(C132/B132)*100 -> 98.2 | E132: 379 | F132: =SUM(E132/B132) -> 7
A133: >=40 | B133: 113 | C133: 110 | D133: 97.3 | E133: 638 | F133: 6
A134: Aggregated total | B134: 200 | C134: 196 | D134: 98.0 | E134: 1235 | F134: 6
A135: Women using donor/partner eggs*
B136: No. of cycles with attempted fertilisation | C136: No. of cycles with embryos formed* | D136: % of cycles with embryos formed from attempted fertilisation | E136: No. of embryos formed | F136: Average no. of embryos formed per cycle
A137: Treatment site | B137: All ages by Treatment site
A138: Melbourne IVF, East Melbourne and RWH sites | B138: 25 | C138: 24 | D138: =SUM(C138/B138)*100 -> 96.0 | E138: 145 | F138: =SUM(E138/B138) -> 6
A139: Monash IVF, Clayton, Geelong, Hawthorn and Sale sites | B139: 76 | C139: 76 | D139: =SUM(C139/B139)*100 -> 100.0 | E139: 360 | F139: 5
A140: Number 1 Fertility, East Melbourne | B140: 76 | C140: 75 | D140: 98.7 | E140: 475 | F140: 6
A141: Aggregated total | B141: 177 | C141: 175 | D141: 98.9 | E141: 980 | F141: 6
A142: Age group | B142: All Treatment sites by age group
A143: <35 | B143: 7 | C143: 7 | D143: =SUM(C143/B143)*100 -> 100.0 | E143: 30 | F143: 4
A144: 35-39 | B144: 22 | C144: 22 | D144: =SUM(C144/B144)*100 -> 100.0 | E144: 121 | F144: 6
A145: >=40 | B145: 148 | C145: 146 | D145: 98.6 | E145: 829 | F145: 6
A146: Aggregated total | B146: 177 | C146: 175 | D146: 98.9 | E146: 980 | F146: 6
A147: * Donor eggs include those imported from interstate or overseas.
A148: ** Fertilised eggs with two pronuclei
A149: *** Does not include lab-only cycles
A152: Table 2.4b Number of ART cycles using thawed eggs, Victoria, 2021-22 financial year
A153: Women using own eggs
B154: No. of cycles with embryos transferred | C154: No. of cycles with embryos frozen** | D154: No. of cycles with ALL embryos frozen*** | E154: No. of embryos frozen**
A155: Treatment site | B155: All ages by Treatment site
A156: Ballarat IVF, Wendouree | B156: 0 | C156: 1 | D156: 1 | E156: 1
A157: City Fertility Centre, all sites | B157: 5 | C157: 10 | D157: 8 | E157: 35
A158: Genea, Melbourne | B158: 2 | C158: 3 | D158: 1 | E158: 11
A159: Melbourne IVF, all sites including RWH | B159: 104 | C159: 77 | D159: 15 | E159: 226
A160: Monash IVF, all sites | B160: 35 | C160: 43 | D160: 27 | E160: 98
A161: Newlife IVF, Box Hill | B161: 10 | C161: 13 | D161: 8 | E161: 31
A162: Number 1 Fertility, East Melbourne | B162: 18 | C162: 24 | D162: 9 | E162: 86
A163: Aggregated total | B163: 174 | C163: 171 | D163: 69 | E163: 487
A164: Age group | B164: All Treatment sites by age group
A165: <35 | B165: 27 | C165: 34 | D165: 17 | E165: 137
A166: 35-39 | B166: 49 | C166: 57 | D166: 25 | E166: 172
A167: >=40 | B167: 98 | C167: 80 | D167: 27 | E167: 178
A168: Aggregated Total | B168: 174 | C168: 171 | D168: 69 | E168: 487
A169: Women using donor/partner eggs*
B170: No. of cycles with embryos transferred | C170: No. of cycles with embryos frozen** | D170: No. of cycles with ALL embryos frozen*** | E170: No. of embryos frozen**
A171: Treatment site | B171: All ages by Treatment site
A172: Melbourne IVF, East Melbourne and RWH sites | B172: 22 | C172: 17 | D172: 2 | E172: 49
A173: Monash IVF, Clayton, Geelong, Hawthorn and Sale sites | B173: 58 | C173: 56 | D173: 10 | E173: 111
A174: Newlife IVF, Box Hill | B174: 0 | C174: 1 | D174: 1 | E174: 1
A175: Number 1 Fertility, East Melbourne | B175: 73 | C175: 59 | D175: 0 | E175: 147
A176: Aggregated total | B176: =SUM(B172:B175) -> 153 | C176: =SUM(C172:C175) -> 133 | D176: =SUM(D172:D175) -> 13 | E176: =SUM(E172:E175) -> 308
A177: Age group | B177: All Treatment sites by age group
A178: <35 | B178: 6 | C178: 2 | D178: 0 | E178: 4
A179: 35-39 | B179: 19 | C179: 15 | D179: 1 | E179: 36
A180: >=40 | B180: 128 | C180: 116 | D180: 12 | E180: 268
A181: Aggregated Total | B181: =SUM(B178:B180) -> 153 | C181: =SUM(C178:C180) -> 133 | D181: 13 | E181: 308
A182: * Donor eggs include those imported from interstate or overseas.
A183: ** Embryos frozen may need to be suitable - i.e. of good quality and meeting freezing criteria.
A184: *** Constitutes a lab-only cycle where eggs are thawed, fertilised and all resulting embryos are frozen.
A187: Disclaimer Please note, the data in tables 2.5, 2.6, 2.7, 3.1, 3.2 and 4.1 cannot be used to compare success rates between treatment sites as clinics provided their clinical pregnancy data during set times in July 2022. Some data may be incomplete as treatment has been included up until 30 June 2022 and ultrasound scans confirming clinical pregnancies may have not been completed before data was submitted. Birth outcomes following treatment in the 2021-22 financial year will be included in next year’s annual report due to the time it takes to track pregnancies and births outcomes.
A189: Use of embryos
A191: Table 2.5 Number of ART cycles with fresh embryo transferred, Victoria, 2021-22 financial year*
A192: Figures do not include alll clinical pregnancies, only those with ultrasound scan available before the date on page x
B193: No. of cycles with embryos transferred | C193: No. of clinical pregnancies | D193: % clinical pregnancies per embryo transfer cycle
A194: Treatment site | B194: All ages by Treatment site
A195: Adora Fertility, Greensborough | B195: 623 | C195: 132 | D195: 21.2
A196: Ballarat IVF, Wendouree | B196: 59 | C196: 16 | D196: 27.1
A197: City Fertility Centre, all sites | B197: 384 | C197: 97 | D197: =SUM(C197/B197)*100 -> 25.3
A198: Genea, Melbourne | B198: 107 | C198: 18 | D198: 16.8
A199: Melbourne IVF, all sites including RWH | B199: 2346 | C199: 780 | D199: =SUM(C199/B199)*100 -> 33.2
A200: Monash IVF, all sites | B200: 1098 | C200: 366 | D200: =SUM(C200/B200)*100 -> 33.3
A201: Newlife IVF, Box Hill | B201: 369 | C201: 120 | D201: 32.5
A202: Number 1 Fertility, East Melbourne | B202: 704 | C202: 225 | D202: 32.0
B203: 5690 | C203: 1754 | D203: 30.8
A204: Age group | B204: All Treatment sites by age group
A205: <35 | B205: 1908 | C205: 787 | D205: 41.2
A206: 35-39 | B206: 2103 | C206: 642 | D206: 30.5
A207: >=40 | B207: 1679 | C207: 325 | D207: 19.4
A208: Aggregated Total | B208: 5690 | C208: 1754 | D208: 30.8
A209: * includes recipient cycles where fresh embryos are recived and transferred
A212: Table 2.6 Number of ART cycles with fresh embryo formed from thawed eggs, Victoria, 2021-22 financial year
A213: Figures do not include alll clinical pregnancies, only those with ultrasound scan available before the date on page x
A214: Treatment site | B214: No. of cycles with embryos transferred** | C214: No. of clinical pregnancies* | D214: % clinical pregnancies per embryo transfer cycle
A215: Adora Fertility, Greensborough | B215: 1 | C215: 0 | D215: 0.0
A216: City Fertility Centre, Melbourne and Bundoora sites | B216: 8 | C216: 1 | D216: =SUM(C216/B216)*100 -> 12.5
A217: Genea, Melbourne | B217: 2 | C217: 0 | D217: 0.0
A218: Melbourne IVF, all sites including RWH | B218: 138 | C218: 54 | D218: =SUM(C218/B218)*100 -> 39.1
A219: Monash IVF, Clayton, Geelong, Hawthorn, Sale and Sunshine sites | B219: 101 | C219: 37 | D219: =SUM(C219/B219)*100 -> 36.6
A220: Newlife IVF, Box Hill | B220: 15 | C220: 5 | D220: 33.3
A221: Number 1 Fertility, East Melbourne | B221: 105 | C221: 37 | D221: 35.2
A222: Aggregated total | B222: =SUM(B215:B221) -> 370 | C222: =SUM(C215:C221) -> 134 | D222: 36.2
... 22 more rows

Sheet Section 3 - AI
A1: SECTION 3
A2: Artificial insemination (AI), 2021-22 financial year
A3: This section provides detail of AI treatment and clinical pregnancies for the 2020-21 financial year.
A4: This data only includes AI insemination at registered ART providers and does not include AI at private doctor's facilities.
A6: Table 3.1 AI with partner sperm for stimulated/unstimulated cycles, Victoria, 2021-22 financial year
A7: All ages
A8: Treatment site | B8: No. of cycles with AI performed | C8: No. of clinical pregnancies* | D8: % clinical pregnancies per AI cycle
A9: Adora Fertility, Greensborough | B9: 90 | C9: 10 | D9: =SUM(C9/B9)*100 -> 11.1
A10: Ballarat IVF, Wendouree | B10: 46 | C10: 4 | D10: =SUM(C10/B10)*100 -> 8.7
A11: City Babies, Richmond | B11: 231 | C11: 33 | D11: 14.3
A12: City Fertility Centre, all sites | B12: 82 | C12: 8 | D12: 9.8
A13: Genea, Melbourne | B13: 14 | C13: 3 | D13: 21.4
A14: Melbourne IVF, all sites including RWH | B14: 331 | C14: 33 | D14: 10.0
A15: Monash IVF, Bendigo, Clayton, Geelong, Hawthorn, Mildura and Sunshine sites | B15: 359 | C15: 44 | D15: 12.3
A16: Newlife IVF, Box Hill | B16: 61 | C16: 1 | D16: 1.6
A17: Number 1 Fertility, East Melbourne | B17: 342 | C17: 22 | D17: 6.4
A18: Aggregated total | B18: =SUM(B9:B17) -> 1556 | C18: =SUM(C9:C17) -> 158 | D18: 10.2
A19: AI: artificial insemination.
A20: * Number of clinical pregnancies only included those reported by the date on page x.
A21: This table contains preliminary data. Not all pregnancy outcomes are known at the time of this report going to print.
A23: Table 3.2 AI with donor sperm for stimulated/unstimulated cycles, Victoria, 2021-22 financial year
A24: All ages
A25: Treatment site | B25: No. of cycles with AI performed | C25: No. of clinical pregnancies* | D25: % clinical pregnancies per AI cycle
A26: Ballarat IVF, Wendouree | B26: 22 | C26: 3 | D26: =SUM(C26/B26)*100 -> 13.6
A27: City Fertility Centre, all sites | B27: 238 | C27: 20 | D27: =SUM(C27/B27)*100 -> 8.4
A28: Genea, Melbourne | B28: 10 | C28: 0 | D28: 0.0
A29: Melbourne IVF, all sites including RWH | B29: 224 | C29: 25 | D29: 11.2
A30: Monash IVF, Bendigo, Clayton, Geelong, Hawthorn and Mildura sites | B30: 131 | C30: 27 | D30: 20.6
A31: Newlife IVF, Box Hill | B31: 61 | C31: 2 | D31: 3.3
A32: Number 1 Fertility, East Melbourne | B32: 4 | C32: 0 | D32: 0.0
A33: Aggregated total | B33: =SUM(B26:B32) -> 690 | C33: =SUM(C26:C32) -> 77 | D33: 11.2
A34: AI: artificial insemination.
A35: * Number of clinical pregnancies only included those reported by the date on page x.
A36: This table contains preliminary data. Not all pregnancy outcomes are known at the time of this report going to print.

Sheet Section 4 Donor
A1: SECTION 4
A2: Donor ART treatment, 2021-22 financial year
A3: For use of AI, refer to section 3. For storage of donor sperm, refer to section 7
A5: Table 4.1 Number of recipients and clinical pregnancies by donation type, Victoria, 2021-22 financial year
A6: This table includes cycles where embryo(s) was transferred. Figures do not include all clinical pregnancies, only those with ultrasound scan available before date on page x.
A7: Donation type (all treatment sites) | B7: No. of recipients treated | C7: No. of cycles with embryos transferred | D7: No. of clinical pregnancies* | E7: % clinical pregnancies per embryo transfer cycle
A8: Donor embryo | B8: 143 | C8: 191 | D8: 75 | E8: 39.3
A9: Donor/partner eggs
A10: --- Fresh egg | B10: 212 | C10: 66 | D10: 31 | E10: 47.0
A11: --- Thawed egg | B11: 182 | C11: 152 | D11: 54 | E11: 35.5
A12: --- Embryos from donated eggs | B12: 340 | C12: 436 | D12: 156 | E12: 35.8
A13: Donor sperm** | B13: 1658 | C13: 1980 | D13: 734 | E13: 37.1
A14: Aggregated total*** | B14: =SUM(B8:B13) -> 2535 | C14: =SUM(C8:C13) -> 2825 | D14: 1050 | E14: =IF(C14=0,0,(D14/C14)*100) -> 37.2
A15: * Number of clinical pregnancies only included those reported by the date on page x.
A16: ** includes cycles where a woman's own eggs or donated eggs were used
A17: *** Excluded AI using donor sperm. Refer to table 3.2. Some recipients had both donated eggs and sperm.
A19: Table 4.2 Number of egg, sperm and embryo donors used in treatment by method of recruitment, 2021-22 financial year*
A21: Registered ART provider (all sites) | B21: No. egg donors | E21: No. sperm donors | H21: No. embryo donors
B22: Recipient recruited | C22: Overseas egg bank recruited | D22: Clinic recruited | E22: Recipient recruited | F22: Overseas sperm bank recruited | G22: Clinic recruited | H22: Recipient recruited | I22: Clinic recruited
A24: Ballarat IVF | B24: 17 | C24: 0 | D24: 3 | E24: 6 | F24: 0 | G24: 26 | H24: 4 | I24: 2
A25: City Fertility Centre, all sites | B25: 48 | C25: 0 | D25: 2 | E25: 44 | F25: 0 | G25: 50 | H25: 8 | I25: 0
A26: Genea | B26: 6 | C26: 0 | D26: 0 | E26: 1 | F26: 6 | G26: 1 | H26: 0 | I26: 0
A27: Melbourne IVF, all sites including RWH | B27: 62 | C27: 0 | D27: 8 | E27: 68 | F27: 4 | G27: 96 | H27: 37 | I27: 28
A28: Monash IVF, all sites | B28: 133 | C28: 56 | D28: 4 | E28: 49 | F28: 14 | G28: 155 | H28: 16 | I28: 10
A29: Newlife IVF | B29: 27 | C29: 0 | D29: 0 | E29: 26 | F29: 5 | G29: 29 | H29: 1 | I29: 0
A30: Number 1 Fertility | B30: 37 | C30: 66 | D30: 0 | E30: 25 | F30: 0 | G30: 6 | H30: 0 | I30: 0
A31: Aggregated total | B31: 330 | C31: 122 | D31: 17 | E31: 219 | F31: 29 | G31: 363 | H31: 66 | I31: 40
A32: * Donors may include commissioning couples or individuals entering into surrogacy arrangements
A34: Table 4.3 Number of recipients and treatment cycles with donor/partner eggs, 2021-22 financial year
A36: Registered ART provider (all sites) | B36: No. of recipients who had treatment with donor/partner eggs | E36: No. of cycles using donor/partner eggs
B37: Recipient recruited | C37: Overseas egg bank recruited | D37: Clinic | E37: Recipient recruited | F37: Overseas egg bank recruited | G37: Clinic
D38: recruited | G38: recruited
A39: FRESH EGGS
A40: Ballarat IVF | B40: 17 | D40: 4 | E40: 35 | G40: 6
A41: City Fertility Centre, all sites | B41: 42 | D41: 14 | E41: 67 | G41: 24
A42: Genea | B42: 8 | D42: 0 | E42: 9 | G42: 0
A43: Melbourne IVF, all sites including RWH | B43: 102 | D43: 0 | E43: 148 | G43: 0
A44: Monash IVF, all sites | B44: 90 | D44: 3 | E44: 96 | G44: 3
A45: Newlife IVF | B45: 40 | D45: 0 | E45: 95 | G45: 0
A46: Number 1 Fertility | B46: 21 | D46: 0 | E46: 25 | G46: 0
A47: Aggregated total | B47: 320 | D47: 21 | E47: 475 | G47: 33
A48: THAWED EGGS
A49: City Fertility Centre, all sites | B49: 0 | C49: 0 | D49: 1 | E49: 0 | F49: 0 | G49: 1
A50: Melbourne IVF, all sites including RWH | B50: 8 | C50: 0 | D50: 9 | E50: 6 | F50: 0 | G50: 9
A51: Monash IVF, all sites | B51: 5 | C51: 69 | D51: 0 | E51: 6 | F51: 74 | G51: 0
A52: Newlife IVF | B52: 1 | C52: 0 | D52: 0 | E52: 0 | F52: 0 | G52: 0
A53: Number 1 Fertility | B53: 25 | C53: 80 | D53: 0 | E53: 38 | F53: 126 | G53: 0
A54: Aggregated total | B54: 39 | C54: 149 | D54: 10 | E54: 50 | F54: 200 | G54: 10
A56: Table 4.4 Relationship status of recipients of donor sperm treatment, 2021-22 financial year
A58: Registered ART provider (all sites) | B58: Relationship status of woman receiving donor sperm treatment
B59: Single | C59: Same-sex | D59: Heterosexual | E59: Other
A60: Ballarat IVF | B60: 40 | C60: 20 | D60: 9 | E60: 0
A61: City Fertility Centre, all sites | B61: 72 | C61: 93 | D61: 15 | E61: 0
A62: Genea | B62: 5 | C62: 5 | D62: 0 | E62: 0
A63: Melbourne IVF, all sites including RWH | B63: 315 | C63: 193 | D63: 75 | E63: 0
A64: Monash IVF, all sites | B64: 288 | C64: 145 | D64: 71 | E64: 0
A65: Newlife IVF | B65: 59 | C65: 62 | D65: 12 | E65: 0
A66: Number 1 Fertility | B66: 25 | C66: 13 | D66: 6 | E66: 0
A67: Aggregated total | B67: 804 | C67: 531 | D67: 188 | E67: 0
A69: Table 4.5 Relationship status of recipients of donor egg treatment, 2021-22 financial year
A71: Registered ART provider (all sites) | B71: Relationship status of woman receiving donor egg treatment
B72: Single | C72: Same-sex | D72: Heterosexual | E72: Other
A73: Ballarat IVF | B73: 2 | C73: 0 | D73: 19 | E73: 0
A74: City Fertility Centre, all sites | B74: 9 | C74: 28 | D74: 21 | E74: 2
A75: Genea | B75: 0 | C75: 1 | D75: 6 | E75: 0
A76: Melbourne IVF, all sites including RWH | B76: 13 | C76: 20 | D76: 62 | E76: 4
A77: Monash IVF, all sites | B77: 22 | C77: 26 | D77: 147 | E77: 0
A78: Newlife IVF | B78: 3 | C78: 1 | D78: 23 | E78: 0
A79: Number 1 Fertility | B79: 4 | C79: 5 | D79: 111 | E79: 0
A80: Aggregated total | B80: 53 | C80: 81 | D80: 389 | E80: 6

Sheet Section 5 - Surrogacy
A1: SECTION 5
A2: Surrogacy, 2020-21 financial year
A4: Table 5 Surrogacy cycles and clinical pregnancies, Victoria, 2021-22 financial year
A5: This table includes cycles where embryo(s) was transferred to a surrogate woman during the financial year. Figures do not include all clinical pregnancies, only those with ultrasound scan available before the date on page x.
A6: Treatment site | B6: No. of surrogate women | C6: No. of cycles with embryos transferred | D6: No. of clinical pregnancies | E6: % clinical pregnancies per embryo transfer cycle
A7: City Fertility Centre, Melbourne | B7: 3 | C7: 6 | D7: 2 | E7: =SUM(D7/C7)*100 -> 33.3
A8: Melbourne IVF, East Melbourne | B8: 16 | C8: 21 | D8: 10 | E8: =SUM(D8/C8)*100 -> 47.6
A9: Monash IVF, Bendigo, Clayton and Hawthorn sites | B9: 12 | C9: 16 | D9: 6 | E9: 37.5
A10: Newlife IVF, Box Hill | B10: 3 | C10: 3 | D10: 2 | E10: 66.7
A11: Number 1 Fertility, East Melbourne | B11: 11 | C11: 16 | D11: 8 | E11: 50.0
A12: Aggregated total | B12: =SUM(B7:B11) -> 45 | C12: =SUM(C7:C11) -> 62 | D12: =SUM(D7:D11) -> 28 | E12: 45.2
A14: 100% surrogacy cycles involving the transfer of an embryo were single embryo transfers

Sheet Section 6 - Storage
A2: SECTION 6
A3: Storage of gametes, 2021-22 financial year
A5: Table 6.1 Storage of sperm, ovarian tissue, eggs and embryos, 2021-22 financial year
A6: This table does not include donor gametes, donor embryos or embryos containing donor gametes
A7: Registered ART provider (all sites) | B7: No. of patients with their own sperm in storage as of 30 June 2022 | C7: No. of patients with their own ovarian tissue in storage as of 30 June 2022 | D7: No. of patients with their own eggs in storage as of 30 June 2022 | E7: No. of eggs in storage as of 30 June 2022 | F7: No. of patients with their own embryos in storage as of 30 June 2022 | G7: No. of embryos in storage as of 30 June 2022
A8: Adora Fertility | B8: 157 | C8: n/a | D8: 32 | E8: 259 | F8: 978 | G8: 3048
A9: Ballarat IVF | B9: 189 | C9: 0 | D9: 77 | E9: 1100 | F9: 513 | G9: 1822
A10: City Fertility Centre, all sites | B10: 586 | C10: 0 | D10: 249 | E10: 2695 | F10: 1352 | G10: 4303
A11: Genea | B11: 59 | C11: 0 | D11: 40 | E11: 387 | F11: 62 | G11: 186
A12: Melbourne IVF, all sites including RWH | B12: 1906 | C12: 483 | D12: 2908 | E12: 40513 | F12: 6971 | G12: 25202
A13: Monash IVF, all sites | B13: 1908 | C13: 68 | D13: 1617 | E13: 20832 | F13: 4232 | G13: 14446
A14: Newlife IVF | B14: 149 | C14: 0 | D14: 231 | E14: 3445 | F14: 845 | G14: 3468
A15: Number 1 Fertility | B15: 300 | C15: 1 | D15: 1335 | E15: 19700 | F15: 1578 | G15: 6894
A16: Aggregated total | B16: 5254 | C16: 552 | D16: 6489 | E16: 88931 | F16: 16531 | G16: 59369
A19: Table 6.2 Storage of donor sperm, 2021-22 financial year
A21: Registered ART provider (all sites) | B21: No. of donors whose sperm is stored and available as of 1 July 2021 | E21: No. of donors whose sperm is stored and available as of 30 June 2022 | H21: New donors recruited during 2021-22
B22: Recipient recruited | C22: Overseas sperm bank recruited | D22: Clinic | E22: Recipient recruited | F22: Overseas sperm bank recruited | G22: Clinic | H22: Recipient recruited | I22: Overseas sperm bank recruited | J22: Clinic
D23: recruited | G23: recruited | J23: recruited
A24: Ballarat IVF | B24: 6 | C24: 0 | D24: 41 | E24: 10 | F24: 0 | G24: 44 | H24: 1 | I24: 0 | J24: 3
A25: City Fertility Centre, all sites | B25: 24 | C25: 0 | D25: 85 | E25: 29 | F25: 0 | G25: 27 | H25: 13 | I25: 0 | J25: 40
A26: Genea | B26: 4 | C26: 11 | D26: 1 | E26: 6 | F26: 9 | G26: 2 | H26: 3 | I26: 0 | J26: 1
A27: Melbourne IVF, all sites including RWH | B27: 100 | C27: 4 | D27: 232 | E27: 125 | F27: 4 | G27: 245 | H27: 41 | I27: 0 | J27: 27
A28: Monash IVF, all sites | B28: 147 | C28: 8 | D28: 270 | E28: 168 | F28: 23 | G28: 308 | H28: 21 | I28: 15 | J28: 21
A29: Newlife IVF | B29: 29 | C29: 4 | D29: 32 | E29: 37 | F29: 5 | G29: 47 | H29: 12 | I29: 0 | J29: 16
A30: Number 1 Fertility | B30: 27 | C30: 0 | D30: 1 | E30: 45 | F30: 0 | G30: 1 | H30: 24 | I30: 0 | J30: 0
A31: Aggregated total | B31: 337 | C31: 27 | D31: 662 | E31: 420 | F31: 41 | G31: 674 | H31: 115 | I31: 15 | J31: 108
A35: Table 6.3 Storage of donor eggs, 2021-22 financial year
A37: Registered ART provider (all sites) | B37: No. of donors whose eggs are stored and available as of 1 July 2021 | E37: No. of donors whose eggs are stored and available as of 30 June 2022 | H37: New donors recruited during 2021-22
B38: Recipient recruited | C38: Overseas egg bank recruited | D38: Clinic | E38: Recipient recruited | F38: Overseas egg bank recruited | G38: Clinic | H38: Recipient recruited | I38: Overseas egg bank recruited | J38: Clinic
D39: recruited | G39: recruited | J39: recruited
A40: City Fertility Centre, all sites | B40: 1 | C40: 0 | D40: 4 | E40: 0 | F40: 0 | G40: 4 | H40: 63 | I40: 0 | J40: 6
A41: Melbourne IVF, all sites including RWH | B41: 10 | C41: 0 | D41: 3 | E41: 10 | F41: 0 | G41: 7 | H41: 5 | I41: 0 | J41: 4
A42: Monash IVF, all sites | B42: 1 | C42: 34 | D42: 0 | E42: 10 | F42: 26 | G42: 0 | H42: 59 | I42: 45 | J42: 1
A43: Newlife IVF | B43: 0 | C43: 0 | D43: 0 | E43: 0 | F43: 0 | G43: 0 | H43: 16 | I43: 0 | J43: 0
A44: Number 1 Fertility | B44: 0 | C44: 14 | D44: 0 | E44: 1 | F44: 25 | G44: 0 | H44: 1 | I44: 40 | J44: 0
A45: Aggregated total | B45: 12 | C45: 48 | D45: 7 | E45: 21 | F45: 51 | G45: 11 | H45: 144 | I45: 85 | J45: 11
A47: Table 6.4 Storage of donor embryos, 2021-22 financial year
A48: This table referes to donated embryos, it does not include embryos that contain donor gametes as this is covered in table 6.5
A49: Registered ART provider (all sites) | B49: No. of embryo donors whose embryos were stored and available as of 1 July 2021 | D49: No. of embryo donors whose embryos were stored and availableas of 30 June 2022 | F49: New donors recruited during 2021-22
B50: Recipient recruited | C50: Clinic | D50: Recipient recruited | E50: Clinic | F50: Recipient recruited | G50: Clinic
C51: recruited | E51: recruited | G51: recruited
A52: Ballarat IVF | B52: 3 | C52: 8 | D52: 3 | E52: 7 | F52: 2 | G52: 0
A53: City Fertility Centre, all sites | B53: 5 | C53: 0 | D53: 3 | E53: 0 | F53: 6 | G53: 0
A54: Genea | B54: 0 | C54: 0 | D54: 0 | E54: 0 | F54: 0 | G54: 0
A55: Melbourne IVF, all sites including RWH | B55: 15 | C55: 29 | D55: 13 | E55: 27 | F55: 8 | G55: 12
A56: Monash IVF, all sites | B56: 18 | C56: 31 | D56: 20 | E56: 26 | F56: 7 | G56: 1
A57: Newlife IVF | B57: 1 | C57: 0 | D57: 1 | E57: 0 | F57: 0 | G57: 0
A58: Aggregated total | B58: 42 | C58: 68 | D58: 40 | E58: 60 | F58: 23 | G58: 13
A61: Table 6.5 Storage of embryos that contain donor gametes, 2021-22 financial year
A62: This table does include embryos that contain donor gametes
A63: Registered ART provider (all sites) | B63: No. of embryos that contain donor gametes that are stored and available as of 1 July 2021 | D63: No. of embryos that contain donor gametes that are stored and availableas of 30 June 2022
B64: Donor sperm | C64: Donor eggs | D64: Donor sperm | E64: Donor eggs
A65: Ballarat IVF | B65: 120 | C65: 74 | D65: 186 | E65: 84
A66: City Fertility Centre, all sites | B66: 641 | C66: 240 | D66: 1084 | E66: 327
A67: Genea | B67: 12 | C67: 17 | D67: 19 | E67: 23
A68: Melbourne IVF, all sites including RWH | B68: 1543 | C68: 418 | D68: 1687 | E68: 483
A69: Monash IVF, all sites | B69: 2487 | C69: 805 | D69: 2617 | E69: 893
A70: Newlife IVF | B70: 247 | C70: 74 | D70: 564 | E70: 145
A71: Number 1 Fertility | B71: 84 | C71: 137 | D71: 166 | E71: 324
A72: Aggregated total | B72: 5134 | C72: 1765 | D72: 6323 | E72: 2279

Sheet Section 7 - PGT
A1: SECTION 7
A2: Preimplantation genetic testing, 2021-22 financial year
A4: Table 7 Preimplantation testing (PGT), 2021-22 financial year
A6: Registered ART provider (all sites) | B6: No. of women who had embryos tested | C6: No. of embryos | D6: No. of embryos deemed suitable for transfer | E6: No. of women who had an embryo transer** | F6: No. of embryos transferred following PGT
C7: tested*
A8: Preimplantation testing for single gene disorders (PGT-M), Preimplantation testing for structural rearrangements (PGT-SR) and Sex selection
A9: Ballarat IVF **** | B9: NA | C9: NA | D9: 0 | E9: 1 | F9: 1
A10: City Fertility Centre, all sites | B10: 14 | C10: 57 | D10: 11 | E10: 7 | F10: 7
A11: Genea | B11: 6 | C11: 17 | D11: 7 | E11: 1 | F11: 1
A12: Melbourne IVF, all sites including Reproductive services | B12: 147 | C12: 958 | D12: 393 | E12: 196 | F12: 197
A13: Monash IVF, all sites | B13: 73 | C13: 330 | D13: 138 | E13: 28 | F13: 80
A14: Newlife IVF | B14: 20 | C14: 120 | D14: 28 | E14: 16 | F14: 31
A15: Number 1 Fertility | B15: 53 | C15: 317 | D15: 163 | E15: 43 | F15: 57
A16: Aggregated total | B16: 313 | C16: 1,799 | D16: 740 | E16: 292 | F16: 374
A17: PGT-M: preimplantation genetic testing for single gene disorders, PGT-SR: preimplantation genetic testing for structural rearrangements
A18: Registered ART provider (all sites) | B18: No. of women who had embryos tested | C18: No. of embryos tested* | D18: No. of embryos deemed euploid after PGT-A | E18: No. of embryos deemed mosaic after PGT-A | F18: No of embryos deemed inconclusive or no result after PGT-A | G18: No. of women who had an embryo transer following PGT-A** | H18: No. of embryos transferred following PGT-A
A20: Preimplantation testing for aneuploidy (incorrect chromasomal numbers, PGT-A)
A21: Ballarat IVF **** | B21: NA | C21: NA | D21: n/a | E21: n/a | F21: n/a | G21: 1 | H21: 2
A22: City Fertility Centre, all sites | B22: 55 | C22: 232 | D22: 103 | E22: 29 | F22: 17 | G22: 31 | H22: 42
A23: Genea | B23: 38 | C23: 101 | D23: 45 | E23: 8 | F23: 0 | G23: 12 | H23: 17
A24: Melbourne IVF, all sites including Reproductive services | B24: 471 | C24: 1,780 | D24: 764 | E24: 94 | F24: 78 | G24: 557 | H24: 574
A25: Monash IVF, all sites | B25: 493 | C25: 1,435 | D25: 783 | E25: 117 | F25: 94 | G25: 415 | H25: 531
A26: Newlife IVF | B26: 324 | C26: 1,409 | D26: 594 | E26: 196 | F26: 51 | G26: 207 | H26: 296
A27: Number 1 Fertility | B27: 568 | C27: 2,204 | D27: 976 | E27: 343 | F27: 73 | G27: 433 | H27: 571
A28: Aggregated total | B28: 1,949 | C28: 7,161 | D28: 3,265 | E28: 787 | F28: 313 | G28: 1,656 | H28: 2,033
A29: PGT-A: preimplantation genetic screening for aneuploidy
A30: Registered ART provider (all sites) | B30: No. of women who had embryos tested | C30: No. of embryos tested* | D30: No. of embryos deemed suitable for transfer | E30: No. of women who had an embryo transer** | F30: No. of embryos transferred following PGT
A32: Non-invasive preimplantation genetic testing for aneuploidy (NIPGT)***
A33: Ballarat IVF**** | B33: NA | C33: NA | D33: 0 | E33: 1 | F33: 1
A34: Monash IVF, all sites | B34: 0 | C34: 0 | D34: 0 | E34: 30 | F34: 35
A35: Aggregated total | B35: 0 | C35: 0 | D35: 0 | E35: 31 | F35: 36
A36: NIPGT: non-invasive preimplantation genetic testing for aneuploidy
A37: * Either fresh embryos or thawed frozen embryos may be tested. Some patients will have some fresh and thawed frozen embryos tested.
A38: ** Women may have treatment using embryos tested and stored in a prior year
A39: *** Non-invasive PGT-A. Note that some women will have some embryos biopsied using standard PGT-A and some tested by NIPGT.
A40: **** Some clinics that may not undertake PGT, may receive embryos transported from another clinic with PGT information

Sheet Treatment cycles
A1: Treatment cycles
A3: Figure 7, Number of patients and treatment cycles per financial year, 2008-09 to 2021-22
B4: 2008/09 | C4: 2009/10 | D4: 2010/11 | E4: 2011/12 | F4: 2012/13 | G4: 2013/14 | H4: 2014/15 | I4: 2015/16 | J4: 2016/17 | K4: 2017/18 | L4: 2018/19 | M4: 2019/20 | N4: 2020/21 | O4: 2021/22
A5: Number of patients | B5: 9262 | C5: 9525 | D5: 9685 | E5: 10252 | F5: 10598 | G5: 11113 | H5: 11317 | I5: 12182 | J5: 12885 | K5: 12378 | L5: 12871 | M5: 13041 | N5: 15674 | O5: 16971
A6: < 35 years | B6: 3387 | C6: 3426 | D6: 3515 | E6: 3695 | F6: 3893 | G6: 4165 | H6: 4281 | I6: 4500 | J6: 4608 | K6: 4588 | L6: 4729 | M6: 4847 | N6: 5834 | O6: 6318
A7: 35-39 years | B7: 3520 | C7: 3585 | D7: 3523 | E7: 3758 | F7: 3780 | G7: 3954 | H7: 4058 | I7: 4425 | J7: 4817 | K7: 4767 | L7: 5172 | M7: 5185 | N7: 6224 | O7: 6640
A8: ≥ 40 years | B8: 2355 | C8: 2514 | D8: 2647 | E8: 2799 | F8: 2925 | G8: 2994 | H8: 2978 | I8: 3257 | J8: 3460 | K8: 3023 | L8: 3271 | M8: 3009 | N8: 3616 | O8: 4013
A9: < 35 years | B9: 36.6 | C9: 36.0 | D9: 36.3 | E9: =E6/E5*100 -> 36.0 | F9: 36.7 | G9: 37.5 | H9: 37.8 | I9: 36.9 | J9: 35.8 | K9: 37.1 | L9: 36.7 | M9: 37.2 | N9: 37.2 | O9: 37.2
A10: 35-39 years | B10: 38.0 | C10: 37.6 | D10: 36.4 | E10: =E7/E5*100 -> 36.7 | F10: 35.7 | G10: 35.6 | H10: 35.9 | I10: 36.3 | J10: 37.4 | K10: 38.5 | L10: 40.2 | M10: 39.8 | N10: 39.7 | O10: 39.1
A11: ≥ 40 years | B11: 25.4 | C11: 26.4 | D11: 27.3 | E11: =E8/E5*100 -> 27.3 | F11: 27.6 | G11: 26.9 | H11: 26.3 | I11: 26.7 | J11: 26.9 | K11: 24.4 | L11: 25.4 | M11: 23.1 | N11: 23.1 | O11: 23.6
A13: Number of cycles | B13: 17687 | C13: 18530 | D13: 18057 | E13: 19361 | F13: 19847 | G13: 20632 | H13: 20585 | I13: 22488 | J13: 24009 | K13: 23042 | L13: 23586 | M13: 23509 | N13: 29894 | O13: 30895
A21: Note:
A22: AI was not report for 2008/09
A23: 2008/09, 2009/10, 2010/11, 2011/12, 2012/13, 2013/14, 2014/15, 2015/16, 2016/17, 2017/18, 2018/19, 2019/20 data were from the final outcome data
A24: 2020/21 data were from the treatment data
A27: Transposed table from figure source data can be found on page 22 of the annual report

Sheet Donor Registers
A1: Donor Registers
A3: Pregnancy and birth notifications
B5: Donation Type
B6: Egg | C6: Sperm | D6: Egg and Sperm | E6: Embryo | F6: Surrogacy (Egg Donor) | G6: Total
A7: Births | B7: 127 | C7: 771 | D7: 32 | E7: 22 | F7: 18 | G7: 970
A8: Pregnancies / Unknown Outcome on 30 June 2022 | B8: 33 | C8: 180 | D8: 6 | E8: 2 | F8: 5 | G8: 226
A9: Total | B9: 160 | C9: 951 | D9: 38 | E9: 24 | F9: 23 | G9: 1196
A12: Central Register
A14: Applications to the Central Register | E14: 83
A17: Donors added to the Central Register in 2021-22
B18: Donors
B19: Egg | C19: Sperm | D19: Embryo | E19: Total
A20: Added in 2021-22 | B20: 72 | C20: 136 | D20: 20 | E20: 228
A21: Total in Central Register 30 June 2022 | B21: 2307 | C21: 2276 | D21: 63* | E21: 4646
A22: *Embryo donors were previously recorded as egg or sperm donors and research is continuing to identify these donors.
A26: On 30 June 2022 there were 34,617 people recorded in the Central Register. Approximately 500 people are recorded twice as they have more than one role (I.e. parent and donor).
A27: Donors | B27: Donor-conceived Persons | C27: Parents (inc. recipients and partners) | D27: Total
A28: 4,646 | B28: 13,232 | C28: 16,739 | D28: 34,617
A31: Voluntray Register
A33: Applications to the Voluntary Register | F33: 132
A35: People recorded in the Voluntary Register as of 30 June 2022
A36: Age as of 30 June 2022 | B36: Donors | C36: Donor-conceived people | D36: Parents (including recipients and partners) | E36: Relatives | F36: Total
A37: 0-9 | B37: - | C37: - | D37: - | E37: - | F37: 0
A38: 10-19 | B38: - | C38: 4 | D38: - | E38: - | F38: 4
A39: 20-29 | B39: 5 | C39: 36 | D39: 2 | E39: 1 | F39: 44
A40: 30-39 | B40: 23 | C40: 134 | D40: 54 | E40: 2 | F40: 213
A41: 40-49 | B41: 46 | C41: 80 | D41: 179 | E41: 3 | F41: 308
A42: 50-59 | B42: 87 | C42: 1 | D42: 149 | E42: - | F42: 237
A43: 60-69 | B43: 110 | C43: - | D43: 54 | E43: 2 | F43: 166
A44: 70-79 | B44: 66 | C44: - | D44: 18 | E44: 1 | F44: 85
A45: 80+ | B45: 9 | C45: - | D45: - | E45: - | F45: 9
A46: Deceased | B46: 5 | C46: 2 | D46: 3 | E46: - | F46: 10
A47: Total | B47: 351 | C47: 257 | D47: 459 | E47: 9 | F47: 1076

Sheet Import and export
A1: Import and Export
A4: Outcome of import and export applications – 1 July 2021 to 30 June 2022
B5: Individual | D5: Class
B6: Import | C6: Export | D6: Import
A7: Applications received | B7: 65 | C7: 53 | D7: 50 [1]
A8: Approved / Approved with conditions | B8: 57 | C8: 49 | D8: 49 [2]
A9: Withdrawn | B9: 3 | C9: 4 | D9: 0
A10: Declined | B10: 0 | C10: 0 | D10: 0
A11: Pending* | B11: 7 | C11: 3 | D11: 2 [3]
A12: *Pending means the application was incomplete or further information was required from the applicant or their ART provider.
A15: [1] These 50 class applications were on behalf of 287 applicants.
A16: [2] These 49 class applications were on behalf of 283 applicants.
A17: [3] These two class applications wereon behalf of 5 applicants.
